[Event "Titled Tuesday Blitz August 22 Late 2023"]
[White "Ibarra Jerez, Jose Carlos"]
[Black "Vafin, Ayrat"]
[WhiteFideId "2226332"]
[BlackFideId "4146530"]
[WhiteElo "2897"]
[BlackElo "2508"]
[Result "1-0"]
[Round "3"]
[TimeControl "180+1"]
[Date "2023.08.22"]
[WhiteClock "0:00:09"]
[BlackClock "0:00:07"]
[Board "68"]

1. e4 {[%clk 0:03:00]}  e5 {[%clk 0:02:59]} 2. Nf3 {[%clk 0:03:00]}  Nf6 {[%clk 0:02:59]} 3. Nc3 {[%clk 0:03:00]}  Bb4 {[%clk 0:02:59]} 4. Nxe5 {[%clk 0:03:00]}  O-O {[%clk 0:02:58]} 5. Be2 {[%clk 0:03:00]}  Re8 {[%clk 0:02:57]} 6. Nd3 {[%clk 0:03:00]}  Bxc3 {[%clk 0:02:55]} 7. dxc3 {[%clk 0:03:01]}  Nxe4 {[%clk 0:02:56]} 8. Nf4 {[%clk 0:03:01]}  d6 {[%clk 0:02:51]} 9. O-O {[%clk 0:03:01]}  Nd7 {[%clk 0:02:49]} 10. c4 {[%clk 0:03:00]}  Ndc5 {[%clk 0:02:48]} 11. f3 {[%clk 0:02:58]}  Nf6 {[%clk 0:02:47]} 12. b3 {[%clk 0:02:59]}  Qe7 {[%clk 0:02:33]} 13. Rf2 {[%clk 0:02:56]}  Ne6 {[%clk 0:02:02]} 14. Nd5 {[%clk 0:02:48]}  Nxd5 {[%clk 0:02:02]} 15. cxd5 {[%clk 0:02:49]}  Nc5 {[%clk 0:01:58]} 16. Bb2 {[%clk 0:02:50]}  Bf5 {[%clk 0:01:53]} 17. Bf1 {[%clk 0:02:49]}  Qd7 {[%clk 0:01:36]} 18. g4 {[%clk 0:02:43]}  Bg6 {[%clk 0:01:36]} 19. h4 {[%clk 0:02:43]}  f6 {[%clk 0:01:36]} 20. h5 {[%clk 0:02:41]}  Bf7 {[%clk 0:01:33]} 21. h6 {[%clk 0:02:42]}  Re5 {[%clk 0:01:09]} 22. c4 {[%clk 0:02:38]}  gxh6 {[%clk 0:01:05]} 23. Qd2 {[%clk 0:02:34]}  Rae8 {[%clk 0:01:04]} 24. Qxh6 {[%clk 0:02:33]}  Bg6 {[%clk 0:01:02]} 25. Bxe5 {[%clk 0:02:23]}  fxe5 {[%clk 0:01:01]} 26. Re1 {[%clk 0:02:21]}  Rf8 {[%clk 0:01:01]} 27. b4 {[%clk 0:02:08]}  Na4 {[%clk 0:00:57]} 28. f4 {[%clk 0:01:07]}  Qxg4+ {[%clk 0:00:53]} 29. Bg2 {[%clk 0:01:08]}  Nc3 {[%clk 0:00:28]} 30. fxe5 {[%clk 0:00:57]}  Rxf2 {[%clk 0:00:28]} 31. Kxf2 {[%clk 0:00:57]}  Qd4+ {[%clk 0:00:15]} 32. Kg3 {[%clk 0:00:48]}  dxe5 {[%clk 0:00:13]} 33. Qe3 {[%clk 0:00:44]}  Qxe3+ {[%clk 0:00:03]} 34. Rxe3 {[%clk 0:00:43]}  Nxa2 {[%clk 0:00:04]} 35. Ra3 {[%clk 0:00:35]}  Nxb4 {[%clk 0:00:04]} 36. Rxa7 {[%clk 0:00:36]}  Nd3 {[%clk 0:00:03]} 37. Rxb7 {[%clk 0:00:33]}  e4 {[%clk 0:00:02]} 38. Rxc7 {[%clk 0:00:32]}  e3 {[%clk 0:00:02]} 39. Bf3 {[%clk 0:00:25]}  Kf8 {[%clk 0:00:01]} 40. d6 {[%clk 0:00:24]}  Bf5 {[%clk 0:00:02]} 41. c5 {[%clk 0:00:21]}  Ke8 {[%clk 0:00:02]} 42. Re7+ {[%clk 0:00:18]}  Kd8 {[%clk 0:00:02]} 43. c6 {[%clk 0:00:17]}  e2 {[%clk 0:00:01]} 44. Bxe2 {[%clk 0:00:14]}  Nc5 {[%clk 0:00:01]} 45. Kf4 {[%clk 0:00:10]}  Kc8 {[%clk 0:00:02]} 46. Kxf5 {[%clk 0:00:09]}  Kb8 {[%clk 0:00:02]} 47. Re8+ {[%clk 0:00:08]}  Ka7 {[%clk 0:00:02]} 48. d7 {[%clk 0:00:09]}  Kb6 {[%clk 0:00:03]} 49. d8=Q+ {[%clk 0:00:09]}  Kxc6 {[%clk 0:00:04]} 50. Bf3+ {[%clk 0:00:09]}  Kb5 {[%clk 0:00:04]} 51. Re5 {[%clk 0:00:09]}  Kc4 {[%clk 0:00:05]} 52. Qd5+ {[%clk 0:00:08]}  Kb4 {[%clk 0:00:05]} 53. Qxc5+ {[%clk 0:00:09]}  Kb3 {[%clk 0:00:06]} 54. Re3+ {[%clk 0:00:09]}  Kb2 {[%clk 0:00:06]} 55. Qb4+ {[%clk 0:00:09]}  Ka2 {[%clk 0:00:07]} 56. Ra3# {[%clk 0:00:09]} 1-0


[Site "https://www.chess.com"]

[Event "Titled Tuesday Blitz August 22 Late 2023"]
[White "Swicarz, Maciej"]
[Black "Sjugirov, Sanan"]
[WhiteFideId "1113585"]
[BlackFideId "4189302"]
[WhiteElo "2507"]
[BlackElo "2877"]
[Result "0-1"]
[Round "3"]
[TimeControl "180+1"]
[Date "2023.08.22"]
[WhiteClock "0:00:03"]
[BlackClock "0:00:35"]
[Board "69"]

1. e4 {[%clk 0:03:00]}  e6 {[%clk 0:02:59]} 2. d4 {[%clk 0:02:58]}  d5 {[%clk 0:02:59]} 3. Nd2 {[%clk 0:02:58]}  c5 {[%clk 0:02:59]} 4. exd5 {[%clk 0:02:57]}  Qxd5 {[%clk 0:02:58]} 5. Ngf3 {[%clk 0:02:57]}  cxd4 {[%clk 0:02:58]} 6. Bc4 {[%clk 0:02:56]}  Qd6 {[%clk 0:02:59]} 7. O-O {[%clk 0:02:54]}  Nf6 {[%clk 0:02:59]} 8. Nb3 {[%clk 0:02:53]}  Nc6 {[%clk 0:02:59]} 9. Nbxd4 {[%clk 0:02:53]}  Nxd4 {[%clk 0:03:00]} 10. Qxd4 {[%clk 0:02:53]}  Qxd4 {[%clk 0:02:52]} 11. Nxd4 {[%clk 0:02:53]}  Bc5 {[%clk 0:02:51]} 12. Nb3 {[%clk 0:02:51]}  Bd6 {[%clk 0:02:49]} 13. Rd1 {[%clk 0:02:48]}  Ke7 {[%clk 0:02:49]} 14. Bg5 {[%clk 0:02:46]}  Rd8 {[%clk 0:02:48]} 15. Be2 {[%clk 0:02:36]}  Bd7 {[%clk 0:02:46]} 16. Bf3 {[%clk 0:02:35]}  Rac8 {[%clk 0:02:38]} 17. c3 {[%clk 0:02:32]}  b6 {[%clk 0:02:38]} 18. Nd4 {[%clk 0:02:29]}  h6 {[%clk 0:02:36]} 19. Bh4 {[%clk 0:02:27]}  g5 {[%clk 0:02:33]} 20. Bg3 {[%clk 0:02:27]}  Bxg3 {[%clk 0:02:33]} 21. hxg3 {[%clk 0:02:28]}  g4 {[%clk 0:02:22]} 22. Be2 {[%clk 0:02:26]}  e5 {[%clk 0:02:22]} 23. Nb3 {[%clk 0:02:21]}  Be6 {[%clk 0:02:17]} 24. Rxd8 {[%clk 0:02:19]}  Rxd8 {[%clk 0:02:17]} 25. Rd1 {[%clk 0:02:19]}  Rxd1+ {[%clk 0:02:16]} 26. Bxd1 {[%clk 0:02:19]}  Ne4 {[%clk 0:02:16]} 27. Kf1 {[%clk 0:02:10]}  f5 {[%clk 0:02:08]} 28. Bc2 {[%clk 0:02:05]}  Nd6 {[%clk 0:02:05]} 29. Nc1 {[%clk 0:01:56]}  Kf6 {[%clk 0:01:53]} 30. b3 {[%clk 0:01:53]}  h5 {[%clk 0:01:41]} 31. c4 {[%clk 0:01:50]}  Nb7 {[%clk 0:01:38]} 32. Ne2 {[%clk 0:01:46]}  Na5 {[%clk 0:01:29]} 33. Ke1 {[%clk 0:01:37]}  Nc6 {[%clk 0:01:28]} 34. a3 {[%clk 0:01:33]}  Kg5 {[%clk 0:01:26]} 35. Kd2 {[%clk 0:01:28]}  f4 {[%clk 0:01:24]} 36. Be4 {[%clk 0:01:23]}  Ne7 {[%clk 0:01:22]} 37. gxf4+ {[%clk 0:01:17]}  exf4 {[%clk 0:01:23]} 38. Nd4 {[%clk 0:01:17]}  Bd7 {[%clk 0:01:22]} 39. Ke1 {[%clk 0:01:14]}  h4 {[%clk 0:01:22]} 40. Kf1 {[%clk 0:01:14]}  Kf6 {[%clk 0:01:14]} 41. f3 {[%clk 0:01:04]}  Ke5 {[%clk 0:01:12]} 42. Ne2 {[%clk 0:00:53]}  g3 {[%clk 0:01:08]} 43. Kg1 {[%clk 0:00:51]}  h3 {[%clk 0:00:47]} 44. gxh3 {[%clk 0:00:49]}  Bxh3 {[%clk 0:00:47]} 45. b4 {[%clk 0:00:46]}  Be6 {[%clk 0:00:45]} 46. c5 {[%clk 0:00:44]}  bxc5 {[%clk 0:00:46]} 47. bxc5 {[%clk 0:00:44]}  Bc4 {[%clk 0:00:46]} 48. Nc1 {[%clk 0:00:18]}  Kd4 {[%clk 0:00:45]} 49. c6 {[%clk 0:00:18]}  Ke3 {[%clk 0:00:37]} 50. c7 {[%clk 0:00:17]}  Kd2 {[%clk 0:00:37]} 51. Bb7 {[%clk 0:00:11]}  Kxc1 {[%clk 0:00:36]} 52. c8=Q {[%clk 0:00:11]}  Nxc8 {[%clk 0:00:36]} 53. Bxc8 {[%clk 0:00:03]}  Kb2 {[%clk 0:00:35]} 0-1


[Site "https://www.chess.com"]

[Event "Titled Tuesday Blitz August 22 Late 2023"]
[White "Cordova, Emilio"]
[Black "only_strong_moves"]
[WhiteFideId "3801497"]
[WhiteElo "2862"]
[BlackElo "2507"]
[Result "1-0"]
[Round "3"]
[TimeControl "180+1"]
[Date "2023.08.22"]
[WhiteClock "0:00:54"]
[BlackClock "0:00:00"]
[Board "70"]

1. d4 {[%clk 0:02:49]}  Nf6 {[%clk 0:02:58]} 2. c4 {[%clk 0:02:50]}  e6 {[%clk 0:02:58]} 3. Nc3 {[%clk 0:02:50]}  Bb4 {[%clk 0:02:59]} 4. e3 {[%clk 0:02:49]}  c5 {[%clk 0:02:57]} 5. Bd3 {[%clk 0:02:45]}  d5 {[%clk 0:02:57]} 6. Nf3 {[%clk 0:02:44]}  cxd4 {[%clk 0:02:57]} 7. exd4 {[%clk 0:02:45]}  dxc4 {[%clk 0:02:56]} 8. Bxc4 {[%clk 0:02:46]}  O-O {[%clk 0:02:38]} 9. O-O {[%clk 0:02:35]}  a6 {[%clk 0:02:31]} 10. Bd3 {[%clk 0:02:34]}  h6 {[%clk 0:02:24]} 11. Bc2 {[%clk 0:02:34]}  Nc6 {[%clk 0:02:05]} 12. Qd3 {[%clk 0:02:31]}  Bd6 {[%clk 0:01:52]} 13. a3 {[%clk 0:02:29]}  e5 {[%clk 0:01:46]} 14. Nd5 {[%clk 0:02:13]}  Re8 {[%clk 0:01:17]} 15. Nxf6+ {[%clk 0:01:42]}  Qxf6 {[%clk 0:01:18]} 16. Qh7+ {[%clk 0:01:42]}  Kf8 {[%clk 0:01:17]} 17. Re1 {[%clk 0:01:38]}  Bg4 {[%clk 0:01:10]} 18. dxe5 {[%clk 0:01:29]}  Nxe5 {[%clk 0:01:09]} 19. Nxe5 {[%clk 0:01:28]}  Rxe5 {[%clk 0:01:09]} 20. Bd2 {[%clk 0:01:25]}  Rae8 {[%clk 0:00:29]} 21. Rxe5 {[%clk 0:01:06]}  Qxe5 {[%clk 0:00:20]} 22. g3 {[%clk 0:01:06]}  Qb5 {[%clk 0:00:03]} 23. Bc3 {[%clk 0:00:58]}  f6 {[%clk 0:00:00]} 24. Bg6 {[%clk 0:00:54]} 1-0


[Site "https://www.chess.com"]

[Event "Titled Tuesday Blitz August 22 Late 2023"]
[White "Glavina, Pablo"]
[Black "Mekhitarian, Krikor Sevag"]
[WhiteFideId "100234"]
[BlackFideId "2107660"]
[WhiteElo "2505"]
[BlackElo "2856"]
[Result "1-0"]
[Round "3"]
[TimeControl "180+1"]
[Date "2023.08.22"]
[WhiteClock "0:00:04"]
[BlackClock "0:00:02"]
[Board "71"]

1. c4 {[%clk 0:02:43]}  c5 {[%clk 0:02:57]} 2. Nf3 {[%clk 0:02:43]}  Nc6 {[%clk 0:02:57]} 3. d4 {[%clk 0:02:43]}  cxd4 {[%clk 0:02:57]} 4. Nxd4 {[%clk 0:02:44]}  Nf6 {[%clk 0:02:50]} 5. Nc3 {[%clk 0:02:44]}  e6 {[%clk 0:02:47]} 6. g3 {[%clk 0:02:41]}  Qb6 {[%clk 0:02:43]} 7. Ndb5 {[%clk 0:02:41]}  Ne5 {[%clk 0:02:40]} 8. Bf4 {[%clk 0:02:37]}  Nfg4 {[%clk 0:02:35]} 9. e3 {[%clk 0:02:36]}  a6 {[%clk 0:02:25]} 10. h3 {[%clk 0:02:36]}  axb5 {[%clk 0:02:20]} 11. hxg4 {[%clk 0:02:36]}  Nxc4 {[%clk 0:01:59]} 12. Rc1 {[%clk 0:02:35]}  d5 {[%clk 0:01:54]} 13. b3 {[%clk 0:02:35]}  Nd6 {[%clk 0:01:40]} 14. Bxd6 {[%clk 0:02:20]}  Bxd6 {[%clk 0:01:40]} 15. Bxb5+ {[%clk 0:02:21]}  Ke7 {[%clk 0:01:25]} 16. Qxd5 {[%clk 0:02:03]}  Qxe3+ {[%clk 0:01:22]} 17. fxe3 {[%clk 0:01:57]}  Bxg3+ {[%clk 0:01:19]} 18. Ke2 {[%clk 0:01:55]}  exd5 {[%clk 0:01:20]} 19. Nxd5+ {[%clk 0:01:55]}  Kd6 {[%clk 0:00:55]} 20. Kf3 {[%clk 0:01:23]}  Kxd5 {[%clk 0:00:35]} 21. Rhd1+ {[%clk 0:01:22]}  Ke5 {[%clk 0:00:33]} 22. Kxg3 {[%clk 0:01:13]}  Be6 {[%clk 0:00:33]} 23. Rc5+ {[%clk 0:01:04]}  Kf6 {[%clk 0:00:11]} 24. g5+ {[%clk 0:01:03]}  Ke7 {[%clk 0:00:05]} 25. Rc7+ {[%clk 0:01:03]}  Kf8 {[%clk 0:00:05]} 26. Rxb7 {[%clk 0:00:40]}  g6 {[%clk 0:00:06]} 27. Bd7 {[%clk 0:00:18]}  Rd8 {[%clk 0:00:04]} 28. Bxe6 {[%clk 0:00:05]}  Rxd1 {[%clk 0:00:04]} 29. Rxf7+ {[%clk 0:00:06]}  Ke8 {[%clk 0:00:05]} 30. Ra7 {[%clk 0:00:07]}  Rf8 {[%clk 0:00:04]} 31. Rxh7 {[%clk 0:00:05]}  Rd3 {[%clk 0:00:04]} 32. Bg4 {[%clk 0:00:02]}  Rxe3+ {[%clk 0:00:04]} 33. Kg2 {[%clk 0:00:03]}  Rf4 {[%clk 0:00:03]} 34. Bd7+ {[%clk 0:00:02]}  Kd8 {[%clk 0:00:03]} 35. Ba4 {[%clk 0:00:03]}  Rd4 {[%clk 0:00:03]} 36. Kf2 {[%clk 0:00:04]}  Rc3 {[%clk 0:00:03]} 37. Rg7 {[%clk 0:00:04]}  Rd2+ {[%clk 0:00:03]} 38. Ke1 {[%clk 0:00:05]}  Rxa2 {[%clk 0:00:03]} 39. Kd1 {[%clk 0:00:04]}  Rg2 {[%clk 0:00:02]} 40. Rxg6 {[%clk 0:00:03]}  Rh3 {[%clk 0:00:02]} 41. Re6 {[%clk 0:00:02]}  Rh1+ {[%clk 0:00:02]} 42. Re1 {[%clk 0:00:02]}  Rhh2 {[%clk 0:00:03]} 43. Re8+ {[%clk 0:00:03]}  Kc7 {[%clk 0:00:03]} 44. Re7+ {[%clk 0:00:03]}  Kd6 {[%clk 0:00:02]} 45. Re1 {[%clk 0:00:02]}  Rxg5 {[%clk 0:00:02]} 46. Kc1 {[%clk 0:00:03]}  Rgg2 {[%clk 0:00:02]} 47. Rd1+ {[%clk 0:00:03]}  Kc5 {[%clk 0:00:02]} 48. Kb1 {[%clk 0:00:04]}  Kb4 {[%clk 0:00:02]} 49. Bc6 {[%clk 0:00:03]}  Rf2 {[%clk 0:00:02]} 50. Bd5 {[%clk 0:00:02]}  Rb2+ {[%clk 0:00:01]} 51. Ka1 {[%clk 0:00:02]}  Ra2+ {[%clk 0:00:02]} 52. Kb1 {[%clk 0:00:03]}  Rhb2+ {[%clk 0:00:02]} 53. Kc1 {[%clk 0:00:04]}  Rh2 {[%clk 0:00:02]} 54. Rd4+ {[%clk 0:00:04]}  Ka3 {[%clk 0:00:02]} 55. Ra4# {[%clk 0:00:04]} 1-0


[Site "https://www.chess.com"]

[Event "Titled Tuesday Blitz August 22 Late 2023"]
[White "Hambleton, Aman"]
[Black "Rizzo, Tobias"]
[WhiteFideId "2606577"]
[BlackFideId "30942691"]
[WhiteElo "2795"]
[BlackElo "2496"]
[Result "1-0"]
[Round "3"]
[TimeControl "180+1"]
[Date "2023.08.22"]
[WhiteClock "0:00:38"]
[BlackClock "0:00:31"]
[Board "75"]

1. d4 {[%clk 0:02:51]}  Nf6 {[%clk 0:02:59]} 2. Bf4 {[%clk 0:02:51]}  g6 {[%clk 0:02:52]} 3. e3 {[%clk 0:02:51]}  Bg7 {[%clk 0:02:53]} 4. h3 {[%clk 0:02:47]}  O-O {[%clk 0:02:50]} 5. Nf3 {[%clk 0:02:47]}  c5 {[%clk 0:02:48]} 6. c3 {[%clk 0:02:47]}  d5 {[%clk 0:02:45]} 7. Nbd2 {[%clk 0:02:47]}  Qb6 {[%clk 0:02:45]} 8. Qb3 {[%clk 0:02:47]}  c4 {[%clk 0:02:45]} 9. Qxb6 {[%clk 0:02:46]}  axb6 {[%clk 0:02:45]} 10. Bxb8 {[%clk 0:02:40]}  Rxb8 {[%clk 0:02:44]} 11. Ne5 {[%clk 0:02:41]}  b5 {[%clk 0:02:33]} 12. a3 {[%clk 0:02:40]}  Ne8 {[%clk 0:02:20]} 13. Be2 {[%clk 0:02:34]}  f6 {[%clk 0:02:16]} 14. Nef3 {[%clk 0:02:34]}  Nd6 {[%clk 0:02:15]} 15. O-O {[%clk 0:02:34]}  g5 {[%clk 0:02:09]} 16. Rfe1 {[%clk 0:02:30]}  Bf5 {[%clk 0:02:09]} 17. Nf1 {[%clk 0:02:28]}  Bg6 {[%clk 0:02:04]} 18. N3d2 {[%clk 0:02:13]}  Ra8 {[%clk 0:01:39]} 19. Ng3 {[%clk 0:02:10]}  h6 {[%clk 0:01:23]} 20. Bh5 {[%clk 0:02:00]}  Bd3 {[%clk 0:01:19]} 21. Bf3 {[%clk 0:01:52]}  e6 {[%clk 0:01:13]} 22. e4 {[%clk 0:01:52]}  dxe4 {[%clk 0:01:10]} 23. Ndxe4 {[%clk 0:01:45]}  Rfd8 {[%clk 0:00:48]} 24. Nc5 {[%clk 0:01:08]}  e5 {[%clk 0:00:47]} 25. dxe5 {[%clk 0:01:09]}  fxe5 {[%clk 0:00:47]} 26. Nxb7 {[%clk 0:01:09]}  Nxb7 {[%clk 0:00:43]} 27. Bxb7 {[%clk 0:01:10]}  Rab8 {[%clk 0:00:39]} 28. Be4 {[%clk 0:01:11]}  Bxe4 {[%clk 0:00:32]} 29. Nxe4 {[%clk 0:01:11]}  Rd3 {[%clk 0:00:32]} 30. Red1 {[%clk 0:00:58]}  Rbd8 {[%clk 0:00:32]} 31. Rxd3 {[%clk 0:00:58]}  Rxd3 {[%clk 0:00:30]} 32. a4 {[%clk 0:00:39]}  bxa4 {[%clk 0:00:30]} 33. Kf1 {[%clk 0:00:39]}  Rd1+ {[%clk 0:00:31]} 34. Rxd1 {[%clk 0:00:38]} 1-0


[Site "https://www.chess.com"]

[Event "Titled Tuesday Blitz August 22 Late 2023"]
[White "Batsuren, Dambasuren"]
[Black "NLLO777"]
[WhiteFideId "4902920"]
[WhiteElo "2769"]
[BlackElo "2492"]
[Result "1-0"]
[Round "3"]
[TimeControl "180+1"]
[Date "2023.08.22"]
[WhiteClock "0:00:58"]
[BlackClock "0:00:04"]
[Board "76"]

1. d4 {[%clk 0:02:57]}  Nf6 {[%clk 0:02:58]} 2. c4 {[%clk 0:02:57]}  e6 {[%clk 0:02:58]} 3. Nc3 {[%clk 0:02:54]}  d5 {[%clk 0:02:58]} 4. cxd5 {[%clk 0:02:55]}  exd5 {[%clk 0:02:59]} 5. Bg5 {[%clk 0:02:55]}  c6 {[%clk 0:02:59]} 6. e3 {[%clk 0:02:56]}  Be7 {[%clk 0:02:59]} 7. Bd3 {[%clk 0:02:56]}  O-O {[%clk 0:02:59]} 8. Qc2 {[%clk 0:02:56]}  Nbd7 {[%clk 0:03:00]} 9. Nf3 {[%clk 0:02:55]}  Re8 {[%clk 0:03:00]} 10. O-O {[%clk 0:02:53]}  Nf8 {[%clk 0:02:59]} 11. h3 {[%clk 0:02:48]}  h6 {[%clk 0:02:53]} 12. Bf4 {[%clk 0:02:35]}  Bd6 {[%clk 0:02:49]} 13. Ne5 {[%clk 0:02:30]}  Qe7 {[%clk 0:02:44]} 14. Bh2 {[%clk 0:02:26]}  N8d7 {[%clk 0:02:34]} 15. f4 {[%clk 0:02:24]}  a6 {[%clk 0:02:23]} 16. Rae1 {[%clk 0:02:19]}  c5 {[%clk 0:02:21]} 17. e4 {[%clk 0:02:08]}  dxe4 {[%clk 0:01:55]} 18. Nxe4 {[%clk 0:02:07]}  Nxe4 {[%clk 0:01:55]} 19. Bxe4 {[%clk 0:02:01]}  Qf8 {[%clk 0:01:42]} 20. Bh7+ {[%clk 0:01:56]}  Kh8 {[%clk 0:01:42]} 21. Nxf7+ {[%clk 0:01:57]}  Qxf7 {[%clk 0:01:39]} 22. Bg6 {[%clk 0:01:58]}  Rxe1 {[%clk 0:01:12]} 23. Bxf7 {[%clk 0:01:57]}  Rxf1+ {[%clk 0:01:13]} 24. Kxf1 {[%clk 0:01:58]}  cxd4 {[%clk 0:01:11]} 25. Be6 {[%clk 0:01:52]}  Nc5 {[%clk 0:00:42]} 26. Bxc8 {[%clk 0:01:51]}  Rxc8 {[%clk 0:00:43]} 27. b4 {[%clk 0:01:50]}  d3 {[%clk 0:00:43]} 28. Qc3 {[%clk 0:01:46]}  d2 {[%clk 0:00:42]} 29. Qxd2 {[%clk 0:01:43]}  Ne4 {[%clk 0:00:42]} 30. Qd3 {[%clk 0:01:41]}  Re8 {[%clk 0:00:30]} 31. a3 {[%clk 0:01:27]}  Kg8 {[%clk 0:00:27]} 32. Qd5+ {[%clk 0:01:25]}  Kf8 {[%clk 0:00:27]} 33. g4 {[%clk 0:01:20]}  Re7 {[%clk 0:00:20]} 34. Kg2 {[%clk 0:01:17]}  g6 {[%clk 0:00:14]} 35. f5 {[%clk 0:01:15]}  Bxh2 {[%clk 0:00:14]} 36. Kxh2 {[%clk 0:01:15]}  gxf5 {[%clk 0:00:14]} 37. Qxf5+ {[%clk 0:01:15]}  Kg7 {[%clk 0:00:14]} 38. h4 {[%clk 0:01:14]}  Nf6 {[%clk 0:00:11]} 39. g5 {[%clk 0:01:14]}  hxg5 {[%clk 0:00:12]} 40. Qxg5+ {[%clk 0:01:12]}  Kf7 {[%clk 0:00:12]} 41. h5 {[%clk 0:01:13]}  Re8 {[%clk 0:00:10]} 42. Qg6+ {[%clk 0:01:12]}  Ke6 {[%clk 0:00:10]} 43. h6 {[%clk 0:01:09]}  Rh8 {[%clk 0:00:10]} 44. Kg3 {[%clk 0:01:06]}  Rh7 {[%clk 0:00:08]} 45. Kf4 {[%clk 0:01:05]}  Rf7 {[%clk 0:00:06]} 46. Kg5 {[%clk 0:01:04]}  Ke7 {[%clk 0:00:04]} 47. Kf5 {[%clk 0:00:59]}  Nh7+ {[%clk 0:00:03]} 48. Ke5 {[%clk 0:01:00]}  Nf6 {[%clk 0:00:03]} 49. Qg5 {[%clk 0:00:58]}  b5 {[%clk 0:00:01]} 50. h7 {[%clk 0:00:57]}  Rxh7 {[%clk 0:00:02]} 51. Qxf6+ {[%clk 0:00:58]}  Ke8 {[%clk 0:00:03]} 52. Qg6+ {[%clk 0:00:57]}  Rf7 {[%clk 0:00:03]} 53. Ke6 {[%clk 0:00:58]}  Kd8 {[%clk 0:00:03]} 54. Qxf7 {[%clk 0:00:58]}  a5 {[%clk 0:00:04]} 55. Qd7# {[%clk 0:00:58]} 1-0


[Site "https://www.chess.com"]

[Event "Titled Tuesday Blitz August 22 Late 2023"]
[White "Michalczak, Thomas"]
[Black "Kushko, Dmitriy"]
[WhiteFideId "4622634"]
[BlackFideId "14162261"]
[WhiteElo "2491"]
[BlackElo "2755"]
[Result "0-1"]
[Round "3"]
[TimeControl "180+1"]
[Date "2023.08.22"]
[WhiteClock "0:00:28"]
[BlackClock "0:00:13"]
[Board "77"]

1. e4 {[%clk 0:03:00]}  g6 {[%clk 0:03:00]} 2. d4 {[%clk 0:03:00]}  Bg7 {[%clk 0:03:00]} 3. Nc3 {[%clk 0:03:01]}  d6 {[%clk 0:03:00]} 4. Be3 {[%clk 0:03:01]}  a6 {[%clk 0:03:01]} 5. h4 {[%clk 0:03:02]}  h6 {[%clk 0:03:00]} 6. Qd2 {[%clk 0:02:58]}  b5 {[%clk 0:03:00]} 7. a3 {[%clk 0:02:58]}  Bb7 {[%clk 0:02:59]} 8. f3 {[%clk 0:02:57]}  Nd7 {[%clk 0:02:59]} 9. g4 {[%clk 0:02:57]}  e6 {[%clk 0:02:59]} 10. Nge2 {[%clk 0:02:56]}  Ne7 {[%clk 0:02:59]} 11. Ng3 {[%clk 0:02:56]}  c5 {[%clk 0:02:59]} 12. Nce2 {[%clk 0:02:56]}  Nc6 {[%clk 0:02:50]} 13. c3 {[%clk 0:02:55]}  Na5 {[%clk 0:02:50]} 14. Rd1 {[%clk 0:02:53]}  Nc4 {[%clk 0:02:49]} 15. Qc1 {[%clk 0:02:54]}  Nxe3 {[%clk 0:02:46]} 16. Qxe3 {[%clk 0:02:55]}  Qc7 {[%clk 0:02:27]} 17. Bg2 {[%clk 0:02:54]}  Nb6 {[%clk 0:02:11]} 18. b3 {[%clk 0:02:49]}  a5 {[%clk 0:02:10]} 19. O-O {[%clk 0:02:48]}  a4 {[%clk 0:02:08]} 20. b4 {[%clk 0:02:47]}  Nc4 {[%clk 0:02:07]} 21. Qc1 {[%clk 0:02:48]}  O-O-O {[%clk 0:01:41]} 22. f4 {[%clk 0:02:41]}  Kb8 {[%clk 0:01:27]} 23. e5 {[%clk 0:02:36]}  Bxg2 {[%clk 0:01:23]} 24. Kxg2 {[%clk 0:02:36]}  cxb4 {[%clk 0:01:15]} 25. cxb4 {[%clk 0:02:35]}  g5 {[%clk 0:00:48]} 26. fxg5 {[%clk 0:02:00]}  dxe5 {[%clk 0:00:47]} 27. Nh5 {[%clk 0:02:00]}  Qb7+ {[%clk 0:00:31]} 28. Kh2 {[%clk 0:01:56]}  hxg5 {[%clk 0:00:29]} 29. Nxg7 {[%clk 0:01:41]}  Rxh4+ {[%clk 0:00:28]} 30. Kg3 {[%clk 0:01:42]}  f5 {[%clk 0:00:18]} 31. Qxg5 {[%clk 0:01:27]}  Rxg4+ {[%clk 0:00:17]} 32. Qxg4 {[%clk 0:01:26]}  fxg4 {[%clk 0:00:18]} 33. Nxe6 {[%clk 0:01:26]}  Rh8 {[%clk 0:00:18]} 34. d5 {[%clk 0:01:14]}  Ne3 {[%clk 0:00:16]} 35. Rh1 {[%clk 0:01:05]}  Rxh1 {[%clk 0:00:14]} 36. Rxh1 {[%clk 0:01:06]}  Qxd5 {[%clk 0:00:14]} 37. Rh8+ {[%clk 0:01:02]}  Ka7 {[%clk 0:00:14]} 38. Rh7+ {[%clk 0:01:02]}  Kb6 {[%clk 0:00:14]} 39. N2f4 {[%clk 0:00:33]}  exf4+ {[%clk 0:00:14]} 40. Nxf4 {[%clk 0:00:33]}  Qf3+ {[%clk 0:00:14]} 41. Kh4 {[%clk 0:00:33]}  Qh1+ {[%clk 0:00:13]} 42. Kg3 {[%clk 0:00:29]}  Qxh7 {[%clk 0:00:14]} 43. Nd5+ {[%clk 0:00:28]}  Nxd5 {[%clk 0:00:13]} 0-1


[Site "https://www.chess.com"]

[Event "Titled Tuesday Blitz August 22 Late 2023"]
[White "Ghazarian, Kirk"]
[Black "Matta, Nicholas"]
[WhiteFideId "30908604"]
[BlackFideId "30914523"]
[WhiteElo "2734"]
[BlackElo "2491"]
[Result "1-0"]
[Round "3"]
[TimeControl "180+1"]
[Date "2023.08.22"]
[WhiteClock "0:00:42"]
[BlackClock "0:00:00"]
[Board "78"]

1. e4 {[%clk 0:03:00]}  g6 {[%clk 0:02:38]} 2. d4 {[%clk 0:03:00]}  Bg7 {[%clk 0:02:38]} 3. Be3 {[%clk 0:03:00]}  d6 {[%clk 0:02:39]} 4. Bd3 {[%clk 0:03:00]}  a6 {[%clk 0:02:39]} 5. Nd2 {[%clk 0:03:00]}  b5 {[%clk 0:02:39]} 6. Ne2 {[%clk 0:03:01]}  Bb7 {[%clk 0:02:40]} 7. O-O {[%clk 0:03:01]}  Nd7 {[%clk 0:02:37]} 8. c3 {[%clk 0:03:01]}  Ngf6 {[%clk 0:02:29]} 9. a4 {[%clk 0:02:53]}  bxa4 {[%clk 0:02:13]} 10. Qxa4 {[%clk 0:02:52]}  Ng4 {[%clk 0:02:08]} 11. Bg5 {[%clk 0:02:51]}  h6 {[%clk 0:02:08]} 12. Bh4 {[%clk 0:02:51]}  O-O {[%clk 0:01:46]} 13. h3 {[%clk 0:02:48]}  Ngf6 {[%clk 0:01:46]} 14. Rfe1 {[%clk 0:02:44]}  g5 {[%clk 0:01:36]} 15. Bg3 {[%clk 0:02:44]}  c5 {[%clk 0:01:37]} 16. d5 {[%clk 0:02:30]}  Nh5 {[%clk 0:01:36]} 17. Bh2 {[%clk 0:02:29]}  Ne5 {[%clk 0:01:27]} 18. Qc2 {[%clk 0:02:26]}  f5 {[%clk 0:01:19]} 19. exf5 {[%clk 0:02:15]}  Bxd5 {[%clk 0:01:19]} 20. Be4 {[%clk 0:02:14]}  Bxe4 {[%clk 0:01:05]} 21. Qxe4 {[%clk 0:02:14]}  d5 {[%clk 0:01:03]} 22. Qc2 {[%clk 0:02:12]}  d4 {[%clk 0:00:51]} 23. cxd4 {[%clk 0:02:05]}  cxd4 {[%clk 0:00:51]} 24. Qe4 {[%clk 0:01:56]}  Nf7 {[%clk 0:00:26]} 25. Nc4 {[%clk 0:01:42]}  Kh8 {[%clk 0:00:26]} 26. Red1 {[%clk 0:01:35]}  Rc8 {[%clk 0:00:26]} 27. b3 {[%clk 0:01:30]}  Nf6 {[%clk 0:00:19]} 28. Qxd4 {[%clk 0:01:19]}  Nd5 {[%clk 0:00:19]} 29. Ne5 {[%clk 0:01:11]}  Nf4 {[%clk 0:00:02]} 30. Nxf7+ {[%clk 0:01:05]}  Rxf7 {[%clk 0:00:03]} 31. Qxd8+ {[%clk 0:01:04]}  Rxd8 {[%clk 0:00:04]} 32. Rxd8+ {[%clk 0:01:04]}  Kh7 {[%clk 0:00:05]} 33. Bxf4 {[%clk 0:00:57]}  Bxa1 {[%clk 0:00:06]} 34. Be3 {[%clk 0:00:56]}  Bf6 {[%clk 0:00:05]} 35. Rd7 {[%clk 0:00:53]}  Rf8 {[%clk 0:00:05]} 36. g4 {[%clk 0:00:53]}  Rb8 {[%clk 0:00:04]} 37. Bd4 {[%clk 0:00:52]}  Kg8 {[%clk 0:00:02]} 38. Bxf6 {[%clk 0:00:52]}  exf6 {[%clk 0:00:03]} 39. Nd4 {[%clk 0:00:52]}  Rb4 {[%clk 0:00:02]} 40. Ne6 {[%clk 0:00:51]}  Rxb3 {[%clk 0:00:02]} 41. Ra7 {[%clk 0:00:48]}  Rb6 {[%clk 0:00:01]} 42. Kg2 {[%clk 0:00:46]}  Kh8 {[%clk 0:00:00]} 43. Nc7 {[%clk 0:00:42]} 1-0


[Site "https://www.chess.com"]